[Event "Julius Baer Generation Cup Prelims 2022"]
[Site "Online"]
[Date "2022.09.14"]
[Round "10.5"]
[White "Ivanchuk, Vasyl"]
[Black "Carlsen, Magnus"]
[Result "1/2-1/2"]
[ECO "E42"]
[WhiteElo "2678"]
[BlackElo "2861"]
[Annotator "TA"]
[PlyCount "244"]
[EventDate "2022.09.12"]
[EventType "tourn"]
[EventCountry "NET"]
[SourceTitle "playchess.com"]
[Source "ChessBase"]
[SourceQuality "1"]
[TimeControl "900+10"]

{[%evp 110,244,-184,-184,-184,-184,-180,-180,-180,-180,-180,-180,-180,-180,-180,-180,-180,-180,-180,-180,-180,-180,-180,-183,-183,-183,-183,-183,-180,-199,-199,-199,-199,-199,-199,-584,-46,-1003,-46,-46,-46,-46,-46,-46,-46,-46,-46,-46,-46,-46,-46,-46,-46,-46,-46,-46,-46,-46,-44,-46,-46,-46,-46,-46,-46,-46,-46,-46,-46,-46,-46,-46,-46,-46,-46,-46,-46,-46,-44,-44,0,-46,-46,-46,-46,-46,-44,-44,-44,-44,-44,-44,-44,-44,-44,-44,-44,-44,-44,-44,-44,-44,-44,-44,-44,-46,0,-44,0,-44,0,-44,-44,-44,-44,-46,-46,-46,-46,-46,-46,-46,-44,-48,0,-46,0,0,0,0,0,0,0,0,0,0,0]} 1. d4 {[%emt 0:00:00]} Nf6 {[%emt 0:00:00]} 2. c4 {[%emt 0:00:04]} e6 {[%emt 0:00:02]} 3. Nc3 {[%emt 0:00:03]} Bb4 {[%emt 0:00:01]} 4. e3 {[%emt 0:00:01]} c5 {[%emt 0:00:07]} 5. Nge2 {[%emt 0:00:01]} b6 {[%emt 0:02:42]} 6. a3 {[%emt 0:00:52]} Ba5 {[%emt 0:00:02]} 7. d5 {[%emt 0:00:02]} O-O {[%emt 0:02:53]} 8. Rb1 {[%emt 0:01:03]} Na6 {[%emt 0:00:08]} 9. f3 {[%emt 0:00:01]} exd5 {[%emt 0:00:42]} 10. cxd5 {[%emt 0:00:04]} b5 {[%emt 0:00:14]} 11. Kf2 {[%emt 0:00:02]} Rb8 {[%emt 0:01:32]} 12. e4 {[%emt 0:00:44]} d6 {[%emt 0:00:08]} 13. Be3 {[%emt 0:00:47]} Nd7 {[%emt 0:00:44]} 14. Ng3 {[%emt 0:01:32]} c4 {[%emt 0:00:08]} 15. b4 {[%emt 0:01:16]} cxb3 {[%emt 0:01:36]} 16. Nxb5 {[%emt 0:00:05]} Qf6 {[%emt 0:03:07]} 17. Bxa7 {[%emt 0:03:53]} Nac5 {[%emt 0:00:12]} 18. Qd4 {[%emt 0:00:59]} Qxd4+ {[%emt 0:00:36]} 19. Nxd4 {[%emt 0:00:02]} Ra8 {[%emt 0:00:46]} 20. Bxc5 {[%emt 0:04:10]} Nxc5 {[%emt 0:00:01]} 21. Ngf5 {[%emt 0:00:02]} Bb6 {[%emt 0:00:28]} 22. Kg3 {[%emt 0:00:01]} Bxf5 {[%emt 0:00:40]} 23. Nxf5 {[%emt 0:00:01]} Rfd8 {[%emt 0:00:38]} 24. Bc4 {[%emt 0:02:31]} Rxa3 {[%emt 0:00:01]} 25. Rhd1 {[%emt 0:00:07]} g6 {[%emt 0:01:17]} 26. Ne7+ {[%emt 0:00:46]} Kg7 {[%emt 0:00:28]} 27. Nc6 {[%emt 0:00:12]} Rc8 {[%emt 0:00:13]} 28. Bxb3 {[%emt 0:00:13]} Bd8 {[%emt 0:00:11]} 29. Bc2 {[%emt 0:00:05]} Bf6 {[%emt 0:00:03]} 30. Rd2 {[%emt 0:00:07]} Rca8 {[%emt 0:00:02]} 31. Re2 {[%emt 0:00:08]} Rc3 {[%emt 0:00:03]} 32. Bd1 {[%emt 0:00:08]} h5 {[%emt 0:00:01]} 33. Kf2 {[%emt 0:00:04]} Nd3+ {[%emt 0:00:04]} 34. Kf1 {[%emt 0:00:02]} h4 {[%emt 0:00:05]} 35. Rc2 {[%emt 0:00:06]} Rxc2 {[%emt 0:00:10]} 36. Bxc2 {[%emt 0:00:01]} Ne5 {[%emt 0:00:01]} 37. Bd1 {[%emt 0:00:27]} Ra2 {[%emt 0:00:15]} 38. Be2 {[%emt 0:00:09]} Nd7 {[%emt 0:00:22]} 39. g3 {[%emt 0:00:12]} Nc5 {[%emt 0:00:08]} 40. Rc1 {[%emt 0:00:06]} Nb3 {[%emt 0:00:11]} 41. Rd1 {[%emt 0:00:01]} h3 {[%emt 0:00:04]} 42. Kf2 {[%emt 0:00:10]} Bb2 {[%emt 0:00:34]} 43. f4 {[%emt 0:00:13]} Ba3 {[%emt 0:00:15]} 44. Ke1 {[%emt 0:00:14]} Bc5 {[%emt 0:00:13]} 45. e5 {[%emt 0:00:12]} Bg1 {[%emt 0:00:01]} 46. exd6 {[%emt 0:00:14]} Nc5 {[%emt 0:00:08]} 47. Rc1 {[%emt 0:00:27]} Bxh2 {[%emt 0:00:20]} 48. Rxc5 {[%emt 0:00:02]} Bxg3+ {[%emt 0:00:01]} 49. Kd1 {[%emt 0:00:01]} h2 {[%emt 0:00:01]} 50. Bf3 {[%emt 0:00:05]} Rf2 {[%emt 0:00:01]} 51. Rc2 {[%emt 0:00:42]} Rf1+ {[%emt 0:00:26]} 52. Ke2 {[%emt 0:00:02]} Rxf3 {[%emt 0:00:00]} 53. Kxf3 {[%emt 0:00:01]} h1=Q+ {[%emt 0:00:02]} 54. Kxg3 {[%emt 0:00:01]} Qxd5 {[%emt 0:00:03]} 55. Ne5 {[%emt 0:00:02]} Qxd6 $2 {[%emt 0:00:02]} (55... Qb3+ {mates} 56. Nf3 Qxc2 57. Nh4 Qd3+ 58. Nf3 Qxd6) 56. Rc6 $19 {[%emt 0:00:11]} Qa3+ {[%emt 0:00:17]} 57. Nf3 {[%emt 0:00:02]} f6 {[%emt 0:00:04]} 58. Rc4 {[%emt 0:00:06]} Kf7 {[%emt 0:00:09]} 59. Re4 {[%emt 0:00:05]} Qd3 {[%emt 0:00:07]} 60. Rd4 {[%emt 0:00:03]} Qe3 {[%emt 0:00:17]} 61. Rd5 {[%emt 0:00:05]} Ke6 {[%emt 0:00:07]} 62. Rb5 {[%emt 0:00:04]} Kd6 {[%emt 0:00:13]} 63. Ra5 {[%emt 0:00:01]} Qc3 {[%emt 0:00:03]} 64. Rb5 {[%emt 0:00:04]} Kc6 {[%emt 0:00:01]} 65. Rb8 {[%emt 0:00:08]} Kd5 {[%emt 0:00:02]} 66. Rg8 {[%emt 0:00:13]} Ke4 {[%emt 0:00:31]} 67. Re8+ {[%emt 0:00:02]} Kf5 {[%emt 0:00:00]} 68. Re2 {[%emt 0:00:09]} Qd3 {[%emt 0:00:52]} 69. Re1 {[%emt 0:00:08]} g5 {[%emt 0:00:07]} 70. fxg5 {[%emt 0:00:02]} Qd6+ {[%emt 0:00:00]} ({Weaker is} 70... fxg5 71. Re5+ Kf6 72. Rxg5 $17) 71. Kg2 {[%emt 0:00:19]} fxg5 {[%emt 0:00:01]} 72. Rf1 $2 {[%emt 0:00:02]} (72. Re2 {is more resistant.}) 72... g4 $2 {[%emt 0:00:22]} (72... Qc6 $19 {( -> ...Kf4)} 73. Kg1 Qc5+ 74. Kg2 Kg4 75. Nh2+ Kh5) 73. Nh4+ $2 {[%emt 0:00:47][%mdl 8192]} (73. Nd2+ $15 Kg6 74. Ne4) 73... Kg5 $2 {[%emt 0:00:09]} (73... Ke5 $19 {aiming for ...Qd2+.} 74. Re1+ Kf6 75. Rf1+ Ke6) 74. Nf5 $15 {[%emt 0:00:01]} Qd5+ {[%emt 0:00:04]} 75. Kh2 $1 {[%emt 0:00:11]} Qd2+ {[%emt 0:00:09]} 76. Kg1 {[%emt 0:00:02]} Qd3 {[%emt 0:00:19]} 77. Rf2 $1 {[%emt 0:00:02]} Kh5 {[%emt 0:00:31]} 78. Rh2+ {[%emt 0:00:08]} Kg6 $1 {[%emt 0:00:04]} 79. Rf2 {[%emt 0:00:02]} Kg5 {[%emt 0:00:06]} 80. Kg2 {[%emt 0:00:01]} Qh3+ {[%emt 0:00:05]} 81. Kg1 {[%emt 0:00:01]} Kf6 {[%emt 0:00:20]} 82. Ng3+ {[%emt 0:00:10]} Ke5 {[%emt 0:00:04]} 83. Rg2 {[%emt 0:00:02]} Qh6 {[%emt 0:00:24]} 84. Nf1 {[%emt 0:00:06]} Qb6+ {[%emt 0:00:05]} 85. Rf2 {[%emt 0:00:03]} Qb3 {[%emt 0:00:02]} 86. Rg2 {[%emt 0:00:13]} Kf4 {[%emt 0:00:16]} 87. Rf2+ {[%emt 0:00:01]} Kg5 {[%emt 0:00:01]} 88. Kg2 {[%emt 0:00:09]} Kh4 {[%emt 0:00:12]} 89. Kg1 {[%emt 0:00:09]} Qb6 {[%emt 0:00:01]} 90. Kg2 {[%emt 0:00:11]} Qd4 {[%emt 0:00:12]} 91. Ng3 {[%emt 0:00:14]} Qd5+ {[%emt 0:00:03]} 92. Kh2 {[%emt 0:00:02]} Qd6 {[%emt 0:00:01]} (92... Qe5 $5 {[%cal Re5g3]} 93. Rg2 Qf4 $19) 93. Rg2 {[%emt 0:00:07]} Kg5 {[%emt 0:00:20]} 94. Rf2 {[%emt 0:00:06]} Kh4 {[%emt 0:00:10]} 95. Rg2 {[%emt 0:00:02]} Qc7 {[%emt 0:00:08]} 96. Rg1 {[%emt 0:00:05]} Kg5 {[%emt 0:00:03]} 97. Rg2 $1 {[%emt 0:00:21]} Kf4 {[%emt 0:00:24]} 98. Rf2+ {[%emt 0:00:14]} Ke3 {[%emt 0:00:04]} 99. Kg2 {[%emt 0:00:08]} Qb7+ {[%emt 0:00:07]} 100. Kg1 {[%emt 0:00:04]} Qb1+ {[%emt 0:00:07]} 101. Kg2 {[%emt 0:00:19]} Qh7 {[%emt 0:00:11]} 102. Nf1+ {[%emt 0:00:12]} Kd3 {[%emt 0:00:14]} 103. Kg1 {[%emt 0:00:17]} Qa7 {[%emt 0:00:42]} 104. Kg2 {[%emt 0:00:04]} Qc7 {[%emt 0:00:09]} 105. Ng3 {[%emt 0:00:17]} Qb7+ {[%emt 0:00:11]} 106. Kg1 {[%emt 0:00:06]} Kd4 {[%emt 0:00:05]} 107. Kh2 {[%emt 0:00:16]} Ke3 {[%emt 0:00:07]} 108. Kg1 $1 {[%emt 0:00:05]} Qb1+ {[%emt 0:00:17]} 109. Kg2 {[%emt 0:00:09]} Qh7 {[%emt 0:00:04]} 110. Kg1 {[%emt 0:00:07]} Qh3 {[%emt 0:00:09]} 111. Nf1+ {[%emt 0:00:05]} Ke4 {[%emt 0:00:02]} 112. Re2+ {[%emt 0:01:01]} Kf4 {[%emt 0:00:04]} 113. Rf2+ {[%emt 0:00:10]} Kg5 {[%emt 0:00:01]} 114. Rg2 $1 {[%emt 0:00:02]} Qa3 {[%emt 0:00:04]} 115. Ng3 {[%emt 0:00:43]} Qc5+ {[%emt 0:00:22]} 116. Rf2 {[%emt 0:00:17]} Kh4 {[%emt 0:00:07]} 117. Kg2 {[%emt 0:00:01]} Qd5+ {[%emt 0:00:09]} (117... Qc8 $15 118. Nf5+ Kg5) 118. Kh2 $11 {[%emt 0:00:03]} Qe5 {[%emt 0:00:01]} (118... Kg5 $5 119. Rf5+ $8 Qxf5 120. Nxf5 Kxf5 $11) 119. Rg2 {[%emt 0:00:01]} Qf4 {[%emt 0:00:01]} 120. Rg1 {[%emt 0:00:03]} Qf3 {[%emt 0:00:23]} 121. Rg2 {[%emt 0:00:09]} Kg5 {[%emt 0:00:05]} 122. Kg1 {[%emt 0:00:06]} Qe3+ {[%emt 0:00:06]} 1/2-1/2

[Event "Julius Baer Generation Cup Prelims 2022"]
[Site "Online"]
[Date "2022.09.14"]
[Round "10.6"]
[White "Duda, Jan-Krzysztof"]
[Black "Erigaisi Arjun"]
[Result "1-0"]
[ECO "E49"]
[WhiteElo "2731"]
[BlackElo "2725"]
[Annotator "TA"]
[PlyCount "85"]
[EventDate "2022.09.12"]
[EventType "tourn"]
[EventCountry "NET"]
[SourceTitle "playchess.com"]
[Source "ChessBase"]
[SourceQuality "1"]
[TimeControl "900+10"]

{[%evp 19,85,-3,-7,-12,-1,-17,8,10,12,-22,18,8,122,89,133,131,187,183,177,147,143,129,125,106,90,110,93,127,111,49,36,0,0,0,224,216,581,567,581,581,581,581,579,566,581,577,573,573,565,565,500,450,621,621,621,621,621,614,614,606,739,731,719,709,971,950,932,785]} 1. d4 {[%emt 0:00:00]} Nf6 {[%emt 0:00:00]} 2. c4 {[%emt 0:00:01]} e6 {[%emt 0:00:02]} 3. Nc3 {[%emt 0:00:05]} Bb4 {[%emt 0:00:02]} 4. e3 {[%emt 0:00:01]} O-O {[%emt 0:00:02]} 5. Bd3 {[%emt 0:00:06]} d5 {[%emt 0:00:03]} 6. a3 {[%emt 0:00:03]} Bxc3+ {[%emt 0:00:12]} 7. bxc3 {[%emt 0:00:00]} dxc4 {[%emt 0:00:00]} 8. Bxc4 {[%emt 0:00:01]} c5 {[%emt 0:00:00]} 9. Ne2 {[%emt 0:00:03]} Qc7 {[%emt 0:00:08]} 10. Bd3 {[%emt 0:00:02]} Nc6 {[%emt 0:00:07] CPLX 2.4} 11. f4 {[%emt 0:00:06] BESTDEEP. E49: Nimzo-Indian: Rubinstein: 5 Bd3 d5 6 a3 Bxc3+ 7 bxc3.} b6 {[%emt 0:00:49] CPLX 2.5 11 (Nc6-e7) (=6)} 12. O-O {[%emt 0:00:03] CPLX 2.5} Rd8 {[%emt 0:00:26] CPLX 2.6 25 (Nc6-e7) (=12)} 13. Bb2 {[%emt 0:00:33] CPLX 2.6. The position is equal.} Bb7 {[%emt 0:00:46][%cal Oc5c4] [#] CPLX 2.6 2 (Nf6-g4) (=10)} 14. e4 $5 $146 {[%emt 0:01:19][%cal Be3e4,Be4e5][%mdl 8] CPLX 2.6 34 (Ne2-g3) (=9) New and interesting.} (14. Ng3 $5 {[%cal Re3e4]}) ({Predecessor:} 14. Ng3 Rd7 15. Rc1 Rad8 16. Qe2 Qb8 17. h3 Ne7 18. e4 Ng6 19. Qe3 Qa8 20. Rce1 {0-1 (65) Grischuk,A (2745)-Durarbayli,V (2638) Chess.com INT 2022}) 14... Na5 {[%emt 0:00:06] CPLX 2.5 40 (Ra8-c8) (=16)} 15. Ng3 {[%emt 0:00:25] CPLX 2.8} Rac8 {[%emt 0:00:50] RELBLUND 114 (c5xd4) (=32)} (15... cxd4 $11 16. cxd4 Nc4) 16. e5 $1 $16 {[%emt 0:01:57] DEEPSTRONG=>BLUNDERREACT} Nd5 {[%emt 0:00:03] CPLX 3.4 44 (Nf6-d7) (=34)} 17. f5 $1 {[%emt 0:00:34] Threatens to win with Qg4. DEEPSTRONG} ({But not} 17. Qh5 $6 g6 18. Qh6 cxd4 19. cxd4 Qe7 $11) 17... Ne3 {[%emt 0:06:04] Prevents Qg4. CPLX 3.0 56 (c5-c4) (=37)} (17... c4 $16 18. fxe6 Rf8 19. exf7+ Rxf7) 18. Qh5 $1 $18 {[%emt 0:00:53] DEEPSTRONG} exf5 {[%emt 0:01:21] BESTDEEP} (18... Nxf1 $2 19. f6 gxf6 20. Qxh7+ Kf8 21. Rxf1 $18) 19. Nxf5 {[%emt 0:00:22] Dancing on a razor blade. RECAPT 30 (Qh5-g5) (=7)} Nxf5 {[%emt 0:00:04] RECAPT} (19... Nxf1 $2 20. Rxf1 (20. Ne7+ Kf8 $16) 20... Bd5 21. Qg5 $18) 20. Rxf5 {[%emt 0:00:58] RECAPT 14 (Bd3xf5) (=8)} ({Don't play} 20. Qxf5 g6 21. Qf6 Rf8 $16) 20... g6 {[%emt 0:00:38] CPLX 4.2} 21. Qg5 {[%emt 0:01:55] CPLX 4.2 19 (Qh5-h6) (=9)} cxd4 {[%emt 0:01:27] CPLX 3.6} 22. cxd4 {[%emt 0:00:07] aiming for Rc1. RECAPT} Nc4 {[%emt 0:00:38] EASY} 23. Rc1 {[%emt 0:03:17] EASY} Bd5 {[%emt 0:00:58] BESTDEEP} 24. Bxc4 {[%emt 0:00:20] CPLX 4.3 62 (Rf5-f6) (=11)} ({White should try} 24. Rf6 $1 $16) 24... Bxc4 $14 {[%emt 0:00:00] RECAPT} 25. e6 {[%emt 0:00:01] Inhibits Qd7. CPLX 3.6 36 (Rf5-f6) (=13)} fxe6 {[%emt 0:00:26] EASY} 26. d5 {[%emt 0:00:39] BESTDEEP} exf5 $2 {[%emt 0:00:45] White now steadily converts the win. MISSDEEP-e6xd5 224 (e6xd5) (=30)} (26... exd5 $11 {and Black has nothing to worry.} 27. Bd4 Rf8 28. Rxf8+ Rxf8) 27. Qf6 $40 {[%emt 0:00:03][%mdl 128] Qh8+ would kill now. White wants a kill. EASY} Rxd5 $2 {[%emt 0:01:33] [#] MISSDEEP-Rd8-d7 365 (Rd8-d7) (=49)} (27... Rd7 {is tougher.}) 28. Re1 $1 {[%emt 0:02:23] Threatening mate with Qh8+. DEEPSTRONG=>BLUNDERREACT. White is clearly winning.} Be2 {[%emt 0:00:01] DEEPSTRONG} 29. Qh8+ {[%emt 0:00:18] EASY} Kf7 {[%emt 0:00:01] [#] LEGAL} 30. Qg7+ {[%emt 0:00:02] BESTDEEP} Ke6 {[%emt 0:00:18] EASY} 31. Rxe2+ {[%emt 0:00:02] EASY} Kd6 {[%emt 0:00:02] ( -> ...Qc5+). EASY} 32. Be5+ {[%emt 0:00:23][%mdl 64] Skewer. CPLX 6.1} Rxe5 {[%emt 0:00:16] EASY} 33. Qxe5+ {[%emt 0:00:00][%mdl 4096] Endgame KQR-KQR. RECAPT} Kc6 {[%emt 0:00:01] White must now prevent ...Qxe5. EASY} 34. Rc2+ {[%emt 0:00:02] EASY} Kb7 {[%emt 0:00:00]} 35. Qd5+ {[%emt 0:00:04]} Kb8 {[%emt 0:00:10]} 36. Rxc7 {[%emt 0:00:03]} Rxc7 {[%emt 0:00:00] KQ-KR} 37. Kf2 {[%emt 0:00:02]} a6 {[%emt 0:00:07]} 38. Kf3 {[%emt 0:00:03]} Ka7 {[%emt 0:00:11]} 39. Kf4 {[%emt 0:00:03]} Re7 {[%emt 0:00:10]} 40. Qd6 {[%emt 0:00:06]} Rb7 {[%emt 0:00:08]} 41. Ke5 {[%emt 0:00:02]} a5 {[%emt 0:00:04]} 42. Kd5 {[%emt 0:00:08]} b5 {[%emt 0:00:13]} 43. Qd8 {[%emt 0:00:01] Weighted Error Value: White=0.09 (flawless) /Black=0.48} 1-0

[Event "Julius Baer Generation Cup Prelims 2022"]
[Site "Online"]
[Date "2022.09.14"]
[Round "10.7"]
[White "Gelfand, Boris"]
[Black "Keymer, Vincent"]
[Result "1/2-1/2"]
[ECO "A13"]
[WhiteElo "2668"]
[BlackElo "2693"]
[Annotator "TA"]
[PlyCount "143"]
[EventDate "2022.09.12"]
[EventType "tourn"]
[EventCountry "NET"]
[SourceTitle "playchess.com"]
[Source "ChessBase"]
[SourceQuality "1"]
[TimeControl "900+10"]

{[%evp 19,143,20,20,13,15,30,17,12,24,-14,0,0,0,0,0,0,0,7,39,34,31,47,46,22,44,58,69,59,64,55,61,13,31,8,6,0,0,0,0,0,0,0,0,-36,-35,-148,-137,-115,-71,-107,-83,-122,-56,-162,-140,-95,-60,-75,-64,-795,-789,-781,-806,-713,-557,-2049,0,-714,-690,-643,-750,-29979,-758,-719,-708,-622,-613,-592,-531,-572,-489,-460,-443,-29939,-29939,-6406,-6288,-29948,-5023,-138,-138,-29954,-29957,-29968,-99,-95,-95,-29957,-95,-95,-95,-29969,-88,-8,-8,-8,0,0,0,0,0,-8,0,0,0,-8,-8,-8,-8,-8,0,-8,0,-16,0,-29]} 1. c4 {[%emt 0:00:00]} Nf6 {[%emt 0:00:00]} 2. Nf3 {[%emt 0:00:02]} e6 {[%emt 0:00:03]} 3. g3 {[%emt 0:00:01]} d5 {[%emt 0:00:01]} 4. Bg2 {[%emt 0:00:01]} d4 {[%emt 0:00:04]} 5. d3 {[%emt 0:00:01]} Nc6 {[%emt 0:00:23]} 6. O-O {[%emt 0:00:04]} Bc5 {[%emt 0:00:01]} 7. Nbd2 {[%emt 0:00:08]} Be7 {[%emt 0:00:02]} 8. Nb3 {[%emt 0:00:41]} O-O {[%emt 0:00:01]} 9. e3 {[%emt 0:00:02]} dxe3 {[%emt 0:00:01]} 10. Bxe3 {[%emt 0:00:01]} Ng4 {[%emt 0:00:01]} 11. Bc5 {[%emt 0:00:13]} Bxc5 {[%emt 0:00:12]} 12. Nxc5 {[%emt 0:00:02]} b6 {[%emt 0:00:01]} 13. Nb3 {[%emt 0:00:38]} Bb7 {[%emt 0:01:43]} 14. h3 {[%emt 0:01:16]} Nf6 {[%emt 0:00:15]} 15. d4 {[%emt 0:00:01]} Qc8 {[%emt 0:01:27]} 16. Qe2 {[%emt 0:00:51]} a5 {[%emt 0:00:50]} 17. Rad1 {[%emt 0:04:42]} a4 {[%emt 0:01:20]} 18. Nbd2 {[%emt 0:00:08]} a3 {[%emt 0:01:24]} 19. b3 {[%emt 0:00:02]} Nb4 {[%emt 0:00:24]} 20. Nb1 $1 {[%emt 0:00:03]} Rd8 {[%emt 0:01:04]} 21. Nc3 {[%emt 0:00:03]} c5 {[%emt 0:00:04]} 22. dxc5 {[%emt 0:02:14]} Qxc5 {[%emt 0:01:00]} 23. Ne5 {[%emt 0:00:42]} Bxg2 {[%emt 0:00:13]} 24. Kxg2 {[%emt 0:00:01]} h6 {[%emt 0:01:02]} 25. f4 {[%emt 0:00:48]} (25. Rfe1 $14) 25... Qe7 $11 {[%emt 0:02:03]} 26. Nb5 {[%emt 0:01:35]} Qb7+ {[%emt 0:00:34]} 27. Kh2 {[%emt 0:00:39]} Ne4 {[%emt 0:01:07]} 28. Nd3 {[%emt 0:00:47]} Nxd3 {[%emt 0:01:40]} 29. Rxd3 {[%emt 0:00:03]} Nc5 {[%emt 0:00:00]} 30. Rdd1 {[%emt 0:01:58]} f5 {[%emt 0:01:19]} 31. Rxd8+ {[%emt 0:01:13]} Rxd8 {[%emt 0:00:03]} 32. Nxa3 {[%emt 0:00:01]} (32. Rc1 $15) 32... Ne4 $17 {[%emt 0:01:48]} 33. Nb1 {[%emt 0:00:09]} Qd7 {[%emt 0:00:17]} 34. Rg1 {[%emt 0:00:24]} Qd4 {[%emt 0:00:03]} 35. Rg2 {[%emt 0:00:05]} Kh7 {[%emt 0:00:07]} (35... e5 $17 36. fxe5 Qxe5) 36. g4 {[%emt 0:00:51]} (36. Na3 $15) 36... Qd6 {[%emt 0:00:21]} 37. Qf3 {[%emt 0:00:14]} Rd7 {[%emt 0:00:04]} 38. gxf5 $1 {[%emt 0:00:14]} exf5 {[%emt 0:00:00]} 39. h4 $2 {[%emt 0:00:02][%mdl 8192]} (39. Nc3 $15 Nxc3 40. Qxc3) 39... Qf6 $19 {[%emt 0:00:04]} 40. Qh3 {[%emt 0:00:18]} Rd1 {[%emt 0:00:10]} 41. Na3 {[%emt 0:00:01]} Nd2 {[%emt 0:00:26]} 42. Rf2 {[%emt 0:00:25]} Ne4 {[%emt 0:00:05]} (42... Qg6 $142 43. Qg2 Qh5 $1) 43. Rg2 $19 {[%emt 0:00:02]} Rf1 {[%emt 0:00:12]} 44. Rxg7+ {[%emt 0:00:27]} Qxg7 {[%emt 0:00:04]} 45. Qxf1 {[%emt 0:00:01]} Qb2+ {[%emt 0:00:02]} (45... Qg3+ $142 46. Kh1 Nf2+ 47. Qxf2 Qxf2 48. Nb5 Kg6 49. Nc3 Kh5 50. Nd1 Qg3 51. Ne3 Qxe3 52. Kh2 Kxh4 53. b4 Qe2+ 54. Kg1 Kh3 55. Kh1 Qh2#) 46. Qg2 $19 {[%emt 0:00:13]} Qxa3 {[%emt 0:00:01]} 47. h5 {[%emt 0:00:03]} Qd6 {[%emt 0:00:01]} 48. Kh3 {[%emt 0:00:05]} Qf6 {[%emt 0:00:24]} ({Weaker is} 48... Qxf4 49. Qg6+ Kh8 50. Qe8+ Kh7 51. Qg6+ Kh8 52. Qe8+ Kh7 53. Qg6+ $11) 49. b4 {[%emt 0:00:14]} Qf7 {[%emt 0:00:10]} 50. Kh4 {[%emt 0:00:19]} Nf6 {[%emt 0:00:28]} 51. Qg6+ {[%emt 0:00:10]} (51. Qe2 $19) 51... Qxg6 {[%emt 0:00:01]} 52. hxg6+ {[%emt 0:00:01]} Kxg6 {[%emt 0:00:00]} 53. a4 {[%emt 0:00:01]} Nd7 {[%emt 0:00:20]} (53... Ne8 $142 54. c5 bxc5 55. bxc5 Kg7 56. c6 Nc7 57. a5 Kg6 58. Kh3 Kf7 59. Kh4 Ke6 60. Kh5 Nd5 61. Kxh6 Kd6 62. Kg7 Kxc6 63. Kg6 Ne3 64. Kf6 Kb5 65. a6 Kxa6 66. Ke5 Kb6 67. Kd4 Ng4 68. Kd5 Kb5 69. Kd4 Kb4 70. Kd5 Kb5 71. Kd4 Kb6 72. Kc3 Kc5 73. Kd3 Kd5 74. Kd2 Ke4 75. Kc3 Kxf4 76. Kd3 Ke5 77. Ke2 Ke4 78. Kf1 f4 79. Ke2 f3+ 80. Kd2 Kd4 81. Kd1 Ke3 82. Kc2 f2 83. Kb3 f1=Q 84. Kc2 Ne5 85. Kb2 Qb5+ 86. Kc3 Nd3 87. Kc2 Qb2+ 88. Kd1 Qe2#) 54. a5 {[%emt 0:00:12]} bxa5 {[%emt 0:00:03]} 55. bxa5 {[%emt 0:00:00]} Nc5 {[%emt 0:00:01]} 56. Kg3 {[%emt 0:00:06]} Kg7 $2 {[%emt 0:00:27]} (56... Ne4+ $1 57. Kh3 Nd6 58. c5 Nb5 59. c6 Kf6 60. Kh4 Ke6 61. Kh5 Nd4 62. c7 Kd7 63. Kxh6 Nc2 64. Kh5 Kxc7 65. Kg5 Ne3 66. Kg6 Kc6 67. Kf6 Kb5 68. Ke5 Kxa5 69. Kd4 Nf1 70. Kd5 Ne3+ 71. Kd4 Nf1 72. Kd5 Kb6 73. Ke5 Ne3 74. Kd4 Ng4 75. Kd5 Ne3+ 76. Kd4 Ng4 77. Kc4 Kc6 78. Kd4 Kd6 79. Kc4 Ne3+ 80. Kd3 Nd5 81. Kc4 Nxf4 82. Kc3 Kd5 83. Kd2 Ke4 84. Ke1 Nd3+ 85. Ke2 f4 86. Kf1 f3 87. Kg1 Ke3 88. Kh2 f2 89. Kg2 Ke2 90. Kh3 f1=Q+ 91. Kg4 Ne5+ 92. Kg5 Ke3 93. Kh6 Qg1 94. Kh5 Qg4+ 95. Kh6 Qg6#) 57. Kh4 $17 {[%emt 0:00:04]} Kh7 {[%emt 0:00:11]} 58. Kg3 $2 {[%emt 0:00:04][%mdl 8192]} (58. Kh3 $17) 58... Kg6 $2 {[%emt 0:00:05]} (58... Ne4+ $1 59. Kh3 Nc5 60. Kh4 Kg8 61. Kh5 Kg7 62. Kh4 Kf7 63. Kh5 Kg7 64. Kh4) 59. Kh4 {[%emt 0:00:04]} Kf6 {[%emt 0:00:05]} 60. Kg3 $2 {[%emt 0:00:33][%mdl 8192] [#]} (60. Kh3 $17) 60... Ke7 $2 {[%emt 0:00:37]} (60... Ne4+ $1 {mates} 61. Kh4 Nd6 62. c5 Nb5 63. c6 Ke6 64. Kh5 Kd5 65. Kxh6 Ke4 66. Kg5 Nd4 67. a6 Nxc6 68. Kf6 Kxf4 69. Ke6 Ke4 70. Kd6 Na7 71. Kc5 Nc8 72. Kb5 Kd4 73. Kc6 Kc4 74. Kd7 Na7 75. Kc7 f4 76. Kb8 {[#]} f3 $1 77. Kxa7 f2 78. Kb8 f1=Q 79. a7 Qf8+ 80. Kb7 Qf7+ 81. Kc6 Qd5+ 82. Kc7 Kc5 83. Kb8 Kb6 84. a8=N+ Kc6 85. Nb6 Qd6+ 86. Ka8 Qc7 87. Nc4 Qb7#) 61. Kh4 $17 {[%emt 0:00:02]} Ke6 {[%emt 0:00:10]} (61... Kd6 $5 62. Kh5 $8 Ne6 $11) 62. Kh5 {[%emt 0:00:23]} Kf6 {[%emt 0:00:08]} 63. Kxh6 {[%emt 0:00:02]} Na6 {[%emt 0:00:01]} 64. Kh5 {[%emt 0:00:03]} Nb4 {[%emt 0:00:08]} 65. Kh4 {[%emt 0:00:10]} Na6 {[%emt 0:00:05]} 66. Kh5 {[%emt 0:00:04]} Nc5 {[%emt 0:00:04]} 67. Kh4 {[%emt 0:00:02]} Kg6 {[%emt 0:00:28]} 68. Kg3 {[%emt 0:00:07]} Kh5 {[%emt 0:00:01]} 69. Kh3 $1 {[%emt 0:00:02]} Kg6 {[%emt 0:00:16]} 70. Kg3 {[%emt 0:00:10]} Kh6 {[%emt 0:00:08]} 71. Kh4 {[%emt 0:00:06]} Kg6 {[%emt 0:00:01]} 72. Kg3 {[%emt 0:00:06]} 1/2-1/2